Cogmind - Beta 11.1 @@@ ROGUE MODE // 2022.06.16 @ 10:13:10 Player: ChromeKnight Result: Destroyed by as-17663 with Assembled Heavy Rifle Performance ------------- Evolutions (0) 0 Regions Visited (2) 400 Robots Destroyed (20) 100 Value Destroyed (424) 424 Prototype IDs (0) 0 Alien Tech Used (0) 0 Bonus (-1130) -1130 TOTAL SCORE: -206 Bonus ------- Friendly Fire -1130 Cogmind --------- Core Integrity 0/250 Matter 265/300 Energy 87/100 System Corruption 0% Temperature Cool (0) Movement Core (50) Location -10/Mines Parts ------- > --- POWER (1) -------- (None) > --- PROPULSION (2) --- (None) > --- UTILITY (2) ------ (None) > --- WEAPON (2) ------- Small Laser > --- INVENTORY (5) ---- Light Treads Sensor Array Hacking Suite Medium Laser Datajack Peak State ------------ > --- POWER ------------ Ion Engine > --- PROPULSION ------- Light Treads Light Treads > --- UTILITY ---------- Small Storage Unit Medium Storage Unit > --- WEAPON ----------- EM Pulse Gun Small Laser > --- INVENTORY -------- Flight Unit Sensor Array Small Laser Light Assault Rifle [Rating: 7] Favorites ----------- Power Ion Engine Engine Ion Engine Propulsion Light Treads Treads Light Treads Utility Medium Storage Unit Storage Medium Storage Unit Weapon Light Assault Rifle Energy Gun Small Laser Ballistic Gun Light Assault Rifle Launcher Grenade Launcher Build | -11 -10 -10 ------- Run | Scr Mat Min Slots Evolved . | . . . Power . | . . . Propulsion . | . . . Utility . | . . . Weapon . | . . . Parts Attached 20 | 6 13 1 Power 3 | 1 2 . Engine 3 | 1 2 . Core . | . . . Reactor . | . . . Propulsion 5 | 2 3 . Treads 5 | 2 3 . Leg . | . . . Wheel . | . . . Hover . | . . . Flight . | . . . Utility 2 | 1 1 . Device . | . . . Storage 2 | 1 1 . Processor . | . . . Hackware . | . . . Protection . | . . . Artifact . | . . . Weapon 10 | 2 7 1 Energy Gun 3 | 2 1 . Energy Cannon . | . . . Ballistic Gun 6 | . 6 . Ballistic Cannon . | . . . Launcher 1 | . . 1 Special Weapon . | . . . Impact Weapon . | . . . Slashing Weapon . | . . . Piercing Weapon . | . . . Special Melee Weapon . | . . . Unidentified Prototypes . | . . . Parts Lost 7 | . 3 4 Power 1 | . . 1 Propulsion 2 | . 1 1 Utility . | . . . Weapon 4 | . 2 2 Highest Loss Streak 4 | . 1 4 To Critical Strikes . | . . . Average Slot Usage (%) 83 | . 83 83 Engine 13 | . 13 13 Treads 26 | . 26 27 Storage 13 | . 14 13 Energy Gun 12 | . 11 14 Ballistic Gun 15 | . 16 13 Naked Turns . | . . . Heaviest Build 18 | 13 18 17 Greatest Support 40 | 40 40 40 Greatest Overweight (x) 3 | . 3 . Average Overweight (x) . | . . . Largest Inventory Capacity 10 | 8 10 10 Average Capacity 9 | 6 9 9 Most Carried 10 | 1 10 10 Average Carried 8 | . 8 9 Final Capacity 10 | 8 10 5 Final Carried 10 | 1 10 5 Class Distribution -------------------- 72% | Mutant 27% | Commander-Mutant Dominant Class ---------------- Mutant | -10/Materials Commander-Mutant | -10/Mines Resources | -11 -10 -10 ----------- Run | Scr Mat Min Matter Collected 464 | 160 278 26 Remotely . | . . . Salvage Created 658 | . 500 158 Parts 44 | . 42 2 Haulers Intercepted 1 | . 1 . Recyclers Shooed . | . . . Parts Field Recycled . | . . . Retrieved Matter . | . . . Parts Self-Destructed . | . . . Prevented . | . . . Kills | -11 -10 -10 ------- Run | Scr Mat Min Combat Hostiles Destroyed 18 | . 13 5 Guns 16 | . 13 3 AOE 2 | . . 2 Classes Destroyed 9 | . 6 3 Worker 1 | . 1 . Builder 1 | . . 1 Hauler 1 | . 1 . Operator 1 | . 1 . Watcher 1 | . 1 . Swarmer 6 | . 6 . Grunt 7 | . 7 . Demolisher 1 | . . 1 Assembled 4 | . . 4 Best Kill Streak 6 | . 4 6 Combat Bots Only 5 | . 4 5 Max Kills in Single Turn 2 | . 2 2 Gunslinging 1 | . 1 . Exploded 2 | . . 2 Melee . | . . . Uniques/NPCs Destroyed 1 | . . 1 YI-UF0 (-10/Mines) Combat | -11 -10 -10 -------- Run | Scr Mat Min Damage Taken 1255 | . 704 551 Core 266 | . 115 151 Absorbed by Shields . | . . . Core Remaining (%) 100 | 100 . . Volleys Fired 91 | . 68 23 Largest 2 | . 2 2 Hottest 80 | . 80 70 Shots Fired 176 | . 133 43 Gun 173 | . 133 40 Cannon . | . . . Launcher 3 | . . 3 Special . | . . . Kinetic 84 | . 67 17 Thermal 65 | . 42 23 Explosive 3 | . . 3 Electromagnetic 24 | . 24 . Robot Hit Streak 10 | . 10 6 Robot Miss Streak 5 | . 5 5 Penetration Max . | . . . Secondary Targets 3 | . 3 . Max Gunslinging Chain 1 | . 1 . Shots Hit Robots 108 | . 80 28 Core Hits 45 | . 30 15 Critical Kills . | . . . Critical Parts Destroyed 1 | . 1 . Critical Strikes 3 | . 3 . Destroy 1 | . 1 . Corrupt 2 | . 2 . Melee Attacks . | . . . Impact . | . . . Slashing . | . . . Piercing . | . . . Sneak Attacks . | . . . Combat Hostiles . | . . . Follow-up Attacks . | . . . Damage Inflicted 1239 | . 822 417 Guns 1097 | . 822 275 Cannons . | . . . Explosions 142 | . . 142 Melee . | . . . Ramming . | . . . Kinetic 450 | . 350 100 Thermal 449 | . 274 175 Explosive 142 | . . 142 Electromagnetic 198 | . 198 . Impact . | . . . Slashing . | . . . Piercing . | . . . Highest Corruption . | . . . Average Corruption . | . . . Corruption Purged . | . . . Corruption Blocked . | . . . Overload Shots . | . . . Overflow Damage . | . . . Projectiles . | . . . Explosions . | . . . Melee . | . . . Knockbacks . | . . . Impact . | . . . Kinetic . | . . . Secondary . | . . . Self-Inflicted Damage . | . . . Shots . | . . . Rammed . | . . . Targets Rammed . | . . . Kicked . | . . . Crushed . | . . . Highest Temperature 258 | . 258 42 Average Temperature 44 | . 52 19 Received Heat Transfer 246 | . 246 . Effects 1 | . 1 . Energy Bleed 1 | . 1 . Siege Activations . | . . . Robots Corrupted . | . . . Combat Hostiles . | . . . Parts Fried . | . . . Impact Corruptions . | . . . Robots Melted . | . . . Combat Hostiles . | . . . Parts Melted . | . . . Heat Transferred 1025 | . 625 400 Parts Sabotaged . | . . . Parts Stolen . | . . . Parts Stripped . | . . . Power Chain Reactions . | . . . Missiles Intercepted . | . . . Alert | -11 -10 -10 ------- Run | Scr Mat Min Peak Influence 223 | . 223 43 Initial 11 | . . 11 Average 45 | . 63 6 Maximum Alert Level 1 | . 1 . Low Security (%) 97 | 100 97 100 Level 1 2 | . 2 . Level 2 . | . . . Level 3 . | . . . Level 4 . | . . . Level 5 . | . . . High Security . | . . . Max Security . | . . . Squads Dispatched 2 | . 2 . Investigation 1 | . 1 . Extermination . | . . . Reinforcement 1 | . 1 . Assault . | . . . Garrison . | . . . Intercept . | . . . Searches Triggered . | . . . Construction Impeded . | . . . Haulers Reinforced . | . . . Active Scanning Responses . | . . . Cargo Convoy Interrupts . | . . . Stealth | -11 -10 -10 --------- Run | Scr Mat Min Distress Signals 2 | . 2 . Communications Jammed . | . . . Distress Signals . | . . . Times Spotted 40 | . 32 8 Peak Tracking Total 6 | . 5 6 Tactical Retreats . | . . . Traps | -11 -10 -10 ------- Run | Scr Mat Min Traps Triggered 3 | . 3 . Indirectly . | . . . Trap Hack Attempts . | . . . Triggered . | . . . Disarmed . | . . . Reprogrammed . | . . . Reused . | . . . Traps Extracted . | . . . Installed . | . . . Triggered . | . . . Machines | -11 -10 -10 ---------- Run | Scr Mat Min Machines Disabled 2 | . 2 . Max in Single Turn 1 | . 1 . Machines Sabotaged . | . . . Garrisons Compromised . | . . . Overloaded Fab Kills . | . . . Hacking | -11 -10 -10 --------- Run | Scr Mat Min Machines Accessed 6 | . 6 . Terminals 6 | . 6 . Fabricators . | . . . Repair Stations . | . . . Recycling Units . | . . . Scanalyzers . | . . . Garrison Access . | . . . Total Hacks 14 | . 14 . Successful 8 | . 8 . Failed 6 | . 6 . Catastrophic . | . . . Database Lockouts . | . . . Manual 14 | . 14 . Terminals 14 | . 14 . Fabricators . | . . . Repair Stations . | . . . Recycling Units . | . . . Scanalyzers . | . . . Garrison Access . | . . . Terminal Hacks . | . . . Fabricator Hacks . | . . . Repair Station Hacks . | . . . Recycling Unit Hacks . | . . . Scanalyzer . | . . . Garrison Access Hacks . | . . . Unauthorized Hacks 8 | . 8 . Terminals 8 | . 8 . Assimilate 2 | . 2 . Botnet 5 | . 5 . Operators 1 | . 1 . Fabricators . | . . . Repair Stations . | . . . Recycling Units . | . . . Scanalyzers . | . . . Garrison Access . | . . . Data Cores Recovered . | . . . Used . | . . . Hacking Detections 4 | . 4 . Full Trace Events . | . . . Feedback Events . | . . . Feedback Blocked . | . . . Robot Schematics Acquired . | . . . Robots Built . | . . . Authchips . | . . . Time . | . . . Total Robot Build Rating . | . . . Part Schematics Acquired . | . . . Parts Built . | . . . Authchips . | . . . Time . | . . . Total Part Build Rating . | . . . Parts Repaired . | . . . Time . | . . . Parts Recycled . | . . . Recycled Matter . | . . . Retrieved Matter . | . . . Retrieved Components . | . . . Parts Scanalyzed . | . . . Part Schematics Acquired . | . . . Parts Damaged . | . . . Bothacking | -11 -10 -10 ------------ Run | Scr Mat Min Used RIF Installer . | . . . Robots Hacked . | . . . Non-combat . | . . . Combat . | . . . Robot Hacks Applied . | . . . Relay Couplers Released . | . . . Fabnet Peak Effective % . | . . . Robots Rewired . | . . . Allies Hacked . | . . . Hacks Repelled . | . . . Allies | -11 -10 -10 -------- Run | Scr Mat Min Total Allies 5 | . 2 3 Largest Group 5 | . 2 5 Highest-Rated Group 60 | . 20 60 Highest-Rated Ally 16 | . 10 16 Total Orders 7 | . 2 5 STAY 5 | . 1 4 FOLLOW 2 | . 1 1 Ally Attacks . | . . . Total Damage . | . . . Kills . | . . . Allies Corrupted . | . . . Allies Melted . | . . . Intel | -11 -10 -10 ------- Run | Scr Mat Min Robot Analysis Total . | . . . Derelict Logs Recovered 1 | . . 1 Drone Launches . | . . . Drone Recoveries . | . . . Exploration | -11 -10 -10 ------------- Run | Scr Mat Min Turns Passed 2599 | 63 1782 754 Spaces Moved 1152 | 35 728 389 Core 6 | 2 1 3 Treads 1146 | 33 727 386 Legs . | . . . Wheels . | . . . Hover . | . . . Flight . | . . . Fastest Speed 50 | 50 160 50 Average Speed 159 | 153 160 159 Slowest Speed 200 | 160 200 160 Overloaded Moves . | . . . Propulsion Burnouts . | . . . Robots Hopped . | . . . Cave-ins Triggered . | . . . Exploration Rate (%) 46 | 3 80 56 Regions Visited 2 Branch Regions 1 Pre-discovered Areas 1 | . . 1 Known Exits Taken . | . . . Unknown Exits Taken 2 | 1 1 . Scrap Searched 1 | . . 1 Spaces Dug . | . . . Terrain Destroyed 6 | . . 6 Melee . | . . . Projectile . | . . . AOE 6 | . . 6 Terrain Rammed . | . . . Walls Destroyed . | . . . Machines Disabled . | . . . Actions | -11 -10 -10 --------- Run | Scr Mat Min Total 1752 | 41 1225 486 Wait 463 | . 396 67 Move 1150 | 34 727 389 Hop . | . . . Pick Up 17 | 1 14 2 Fast Attach 11 | 6 5 . Attach 5 | . 4 1 Detach . | . . . Swap 4 | . 4 . Drop 11 | . 7 4 Fire 91 | . 68 23 Melee . | . . . Ram . | . . . Kick . | . . . Crush . | . . . Escape Stasis . | . . . Rewire . | . . . Trap . | . . . Miscellaneous . | . . . Route ------- -11/Scrapyard -10/Materials (discovered 3 exits: [*Mat x2] / [*Min]) -10/Mines (discovered 1 exit: [*Exi]) History --------- Turn | Location | Event 13 | -11/Scrapyard | Discovered new exit (range 14) 64 | -11/Scrapyard | Entered Materials 117 | -10/Materials | Discovered new exit (range 12) 316 | -10/Materials | Build established: Mutant 875 | -10/Materials | Discovered new exit (range 13) 1273 | -10/Materials | Discovered new exit (range 16) 1846 | -10/Materials | Entered Mines 1846 | -10/Mines | Accompanied by 2 allies 1870 | -10/Mines | Assisted by bots powering up and referring to "LRC-V3" 1899 | -10/Mines | Met a Derelict bent on vengeance 2041 | -10/Mines | Learned location of Zion (-7) 2094 | -10/Mines | Deemed a non-threat by the Exiles lab entrance 2096 | -10/Mines | Discovered new exit (range 5) 2159 | -10/Mines | Build established: Commander-Mutant 2322 | -10/Mines | YI-UF0 nonchalantly dropped a Grenade Launcher on the ground 2382 | -10/Mines | Destroyed YI-UF0 2544 | -10/Mines | Assembled infested the area 2549 | -10/Mines | Assisted by a Guerilla fighting off Assembled 2574 | -10/Mines | Core integrity fell below 50% 2585 | -10/Mines | Core integrity fell below 20% 2600 | -10/Mines | Destroyed by as-17663 with Assembled Heavy Rifle Last Messages --------------- 02579_ Lgt. Assault Rifle destroyed. 02579_ Ion Engine destroyed. 02579_ Lgt. Treads destroyed. 02580_ U-05 Engineer lays Concrete. 02582_ D-53 Grenadier destroyed. 02583_ U-05 Engineer lays Concrete. 02584_ D-53 Grenadier destroyed. 02584_ U-05 Engineer lays Concrete. 02585_ as-22411 destroyed. 02585_ U-05 Engineer destroyed. 02587_ The unstable cave ceiling collapses. 02588_ as-41831 destroyed. 02591_ The unstable cave ceiling collapses. 02591_ as-85867 destroyed. 02591_ as-06566 destroyed. 02592_ The unstable cave ceiling collapses. 02594_ Grenade Launcher destroyed. 02597_ The unstable cave ceiling collapses. 02598_ Dropped Med. Storage Unit. 02598_ Dropped Lgt. Treads. Map ----- +----------------------------------------------------+ | ???????????## ## ############ | | ????????????## = ######### | | ?????????????## ## !##???????# | | ??????????????# #####%#????????## #### ###### | | ??????????????## #####!#?????????# #??# #????# | | ???????????????## #?????????## #??# #????# | | ????????????????# #######??????????###### #???## | | ??????????????### #????####?????????# #???# | | ?????????????## ##??## ####??????# #####???# | | ?????????????# #??# ######## #???????## | | ?????????????# #### % #???????## | | ????????????## ## ## #########??????## | | ????????????# #### #?????????????## | | ????????????# #??## ###??????????## | | ???????????# ##???# #######?????# | | ??????????# ?????# ####### | | ??????????####?????## %* | | ????????????????????# % ### ####### | | ???????????########## ### #?????## | | ???????????? # aa ## #?####### | | ??????????????? #?# ### #### | | ?????????????????# % ##?## #?### | | ?????????????????# ##?## #???? | | ?????????????????# ###/% #### #???? | | ?????????????????# [!= #????? | | ?????????????????# != @ ##???? | | ???????????????##### #### ##??? | | ????????####??## ####??# ##?? | | ######### #### ##?????# ### | | #??????# #### | | ######## ## #??????# ##??## | | ??????# ### #?????# #???## ### | | ??????# !!! ##?# #?????# #???# ##? | | ??????# ! ! ##?# #?????# #???# ## | | ??????# ! ! ## ## #?????## ##???# # | | ??????# ! ### # ##?????####????# # | | ??????# ### ##????????????## ## | | ??????###########?# #?????????????### ##? | | ??????????????????## #???????????????####?? | | ???????????????????### ##????????????????????? | | ?????????????????????## ##?????????????????????? | | ??????????????????????#####??????????????????????? | | ?????????????????????????????????????????????????? | | ?????????????????????????????????????????????????? | | ?????????????????????????????????????????????????? | | | | | | | | | | | +----------------------------------------------------+ Best States ------------- Heat Dissipation 25 Energy Generation 10 Energy Capacity 250 Matter Stores 300 Matter Capacity 300 Sight Range 16 Terrain Scan Density 10 Evasion (%) 50 Recoil Reduction 2 Item Schematics ----------------- None Robot Schematics ------------------ None Fabricated ------------ Nothing Alien Tech Used ----------------- None Achievements -------------- None Challenges ------------ None Game ------ Seed NuclearAdvancedRouter Manual? 0 Play Time 00:15:03 Cumulative 336.1 hours Start 2022.06.16 @ 09:57:46 End 2022.06.16 @ 10:13:10 Sessions 1 Manual Loads 0 Difficulty Rogue Special Mode None Game No. 596 Rogue 441 Adventurer 148 Explorer 7 Win Type - Total 11 Types 9/0/1/1/0/0/0/0/0 Lore% 74 Gallery% 87 Achievement% 67 Wizard Run 0 Options --------- ASCII 0 Keyboard 0 Movement Numpad Keybinds 0 Fullscreen 1 Font 18/SmallcapsGlow Map View 76x50 Tactical HUD 1 Map Filters NONE Filters NONE Steam 1 RUN: 6675650b-4230-4fe2-b8b4-4aacf7af4438